[Event "26th Abu Dhabi Master 2019"]
[Site "Abu Dhabi"]
[Date "2019.08.08"]
[Round "7.13"]
[White "Sengupta, Deep"]
[Black "Yilmaz, Mustafa"]
[Result "1-0"]
[ECO "A28"]
[WhiteElo "2558"]
[BlackElo "2618"]
[Annotator "ChessBase"]
[PlyCount "131"]
[EventDate "2019.08.02"]
[EventType "swiss"]
[EventCountry "UAE"]
[SourceTitle "playchess.com"]
[Source "ChessBase"]
[SourceQuality "1"]
[TimeControl "5400+30"]

1. c4 {[%emt 0:00:00]} Nf6 {[%emt 0:00:34]} 2. Nc3 {[%emt 0:00:00]} e5 {[%emt 0:00:21]} 3. Nf3 {[%emt 0:00:00]} Nc6 {[%emt 0:00:07]} 4. e4 {[%emt 0:00:27]} Bb4 {[%emt 0:05:34]} 5. d3 {[%emt 0:00:22]} d6 {[%emt 0:04:18]} 6. a3 {[%emt 0:07:34]} Bxc3+ {[%emt 0:03:51]} 7. bxc3 {[%emt 0:00:01]} Nd7 {[%emt 0:05:50]} 8. Be2 {[%emt 0:11:22]} O-O {[%emt 0:02:41]} 9. O-O {[%emt 0:00:05]} Nc5 {[%emt 0:03:41]} 10. Be3 {[%emt 0:06:55]} f5 {[%emt 0:08:15]} 11. exf5 {[%emt 0:01:18]} Bxf5 {[%emt 0:00:11]} 12. d4 {[%emt 0:04:24]} Ne4 {[%emt 0:00:24]} 13. c5 {[%emt 0:00:35]} Kh8 {[%emt 0:09:06]} 14. Qc1 {[%emt 0:11:40]} Qf6 {[%emt 0:02:24]} 15. dxe5 {[%emt 0:10:04]} dxe5 {[%emt 0:01:03]} 16. Qb2 {[%emt 0:18:12]} b6 {[%emt 0:02:35]} 17. cxb6 {[%emt 0:02:39]} axb6 {[%emt 0:00:10]} 18. c4 {[%emt 0:00:30]} Ra5 {[%emt 0:09:21]} 19. Rfd1 {[%emt 0:00:06]} Rfa8 {[%emt 0:01:06]} 20. Rd5 {[%emt 0:00:49]} Be6 {[%emt 0:06:58]} 21. Rb5 {[%emt 0:00:14]} h6 {[%emt 0:04:34]} 22. h3 {[%emt 0:07:45]} Nd6 {[%emt 0:05:03]} 23. Rxa5 {[%emt 0:00:06]} Rxa5 {[%emt 0:00:04]} 24. Rc1 {[%emt 0:00:29]} Nf5 {[%emt 0:06:09]} 25. c5 {[%emt 0:01:19]} bxc5 {[%emt 0:04:51]} 26. Bxc5 {[%emt 0:02:34]} Bd5 {[%emt 0:03:24]} 27. Qd2 {[%emt 0:00:49]} Qe6 {[%emt 0:00:43]} 28. Nh2 {[%emt 0:10:12]} Ncd4 {[%emt 0:02:43]} 29. Bd1 {[%emt 0:02:16]} Ra8 {[%emt 0:00:30]} 30. Ng4 {[%emt 0:00:30]} Rd8 {[%emt 0:06:23]} 31. Qe1 {[%emt 0:00:47]} Re8 {[%emt 0:01:04]} 32. Rc3 {[%emt 0:01:20]} Qg6 {[%emt 0:00:32]} 33. f3 {[%emt 0:00:29]} e4 {[%emt 0:00:36]} 34. f4 Ne6 {[%emt 0:01:12]} 35. Be3 {[%emt 0:01:01]} Nxe3 {[%emt 0:00:22]} 36. Qxe3 {[%emt 0:00:15]} Qf5 {[%emt 0:00:40]} 37. Ne5 {[%emt 0:00:37]} Nxf4 {[%emt 0:00:31]} 38. Qxf4 {[%emt 0:00:07]} Qxe5 {[%emt 0:00:30]} 39. Qxe5 {[%emt 0:00:16]} Rxe5 {[%emt 0:00:02]} 40. Rxc7 {[%emt 0:00:06]} Re8 {[%emt 0:00:49]} 41. Bh5 {[%emt 0:01:25]} Ra8 {[%emt 0:00:36]} 42. Bg6 {[%emt 0:00:10]} Kg8 {[%emt 0:00:14]} 43. a4 {[%emt 0:00:49]} Kf8 {[%emt 0:00:09]} 44. Rc5 {[%emt 0:00:18]} Bb7 {[%emt 0:00:58]} 45. Re5 {[%emt 0:00:16]} Bc6 {[%emt 0:00:27]} 46. Bxe4 {[%emt 0:01:01]} Bxe4 {[%emt 0:00:31]} 47. Rxe4 {[%emt 0:00:01]} Kf7 {[%emt 0:00:12]} 48. Kf2 {[%emt 0:00:11]} Kf6 {[%emt 0:00:08]} 49. Ke3 {[%emt 0:00:04]} Kf5 {[%emt 0:00:32]} 50. Rb4 {[%emt 0:00:12]} Ke5 {[%emt 0:00:10]} 51. h4 {[%emt 0:00:41]} g6 {[%emt 0:01:27]} 52. Rb5+ {[%emt 0:00:13]} Ke6 {[%emt 0:00:24]} 53. a5 {[%emt 0:00:05]} h5 {[%emt 0:00:12]} 54. Kf4 {[%emt 0:00:27]} Rc8 {[%emt 0:00:32]} 55. Kg5 {[%emt 0:01:19]} Rc2 {[%emt 0:00:30]} 56. Kxg6 {[%emt 0:00:21]} Rxg2+ {[%emt 0:00:05]} 57. Kxh5 {[%emt 0:00:04]} Kf6 {[%emt 0:00:27]} 58. a6 {[%emt 0:01:08]} Ra2 {[%emt 0:00:06]} 59. Rb6+ {[%emt 0:00:03]} Kf5 {[%emt 0:00:44]} 60. Kh6 {[%emt 0:00:05]} Kg4 {[%emt 0:00:08]} 61. h5 {[%emt 0:00:32]} Ra5 {[%emt 0:00:05]} 62. Kg6 {[%emt 0:00:13]} Rg5+ {[%emt 0:00:07]} 63. Kf6 {[%emt 0:00:05]} Rxh5 {[%emt 0:00:04]} 64. Rb4+ {[%emt 0:00:13]} Kf3 {[%emt 0:00:08]} 65. Ra4 {[%emt 0:00:07]} Rh6+ {[%emt 0:00:45]} 66. Kg7 {[%emt 0:00:13]} 1-0

[Event "26th Abu Dhabi Master 2019"]
[Site "Abu Dhabi"]
[Date "2019.08.08"]
[Round "7.14"]
[White "Tabatabaei, M.amin"]
[Black "Vignesh N R"]
[Result "1-0"]
[ECO "A13"]
[WhiteElo "2601"]
[BlackElo "2466"]
[Annotator "ChessBase"]
[PlyCount "83"]
[EventDate "2019.08.02"]
[EventType "swiss"]
[EventCountry "UAE"]
[SourceTitle "playchess.com"]
[Source "ChessBase"]
[SourceQuality "1"]
[TimeControl "5400+30"]

1. Nf3 {[%emt 0:03:20]} d5 {[%emt 0:01:10]} 2. c4 {[%emt 0:00:31]} e6 {[%emt 0:04:27]} 3. g3 {[%emt 0:00:23]} Nf6 {[%emt 0:00:07]} 4. Bg2 {[%emt 0:00:42]} dxc4 {[%emt 0:03:43]} 5. Qa4+ {[%emt 0:00:08]} Nbd7 {[%emt 0:00:20]} 6. Qxc4 {[%emt 0:00:11]} a6 {[%emt 0:00:05]} 7. Qb3 {[%emt 0:03:16]} Rb8 {[%emt 0:09:07]} 8. O-O {[%emt 0:02:14]} c5 {[%emt 0:03:42]} 9. d4 {[%emt 0:10:05]} cxd4 {[%emt 0:08:09]} 10. Bf4 {[%emt 0:02:40]} Nc5 {[%emt 0:06:49]} 11. Qc4 {[%emt 0:05:03]} Bd6 {[%emt 0:04:37]} 12. Qxd4 {[%emt 0:07:42]} Bxf4 {[%emt 0:00:10]} 13. Qxf4 {[%emt 0:00:06]} Ncd7 {[%emt 0:09:53]} 14. Rd1 {[%emt 0:07:14]} O-O {[%emt 0:06:26]} 15. Nc3 {[%emt 0:01:32]} Qe7 {[%emt 0:01:52]} 16. Ne5 {[%emt 0:02:31]} Nxe5 {[%emt 0:01:03]} 17. Qxe5 {[%emt 0:00:03]} Bd7 {[%emt 0:00:10]} 18. Rd6 {[%emt 0:01:30]} Rfc8 {[%emt 0:03:48]} 19. Rad1 {[%emt 0:00:42]} Be8 {[%emt 0:00:01]} 20. a3 {[%emt 0:15:04]} Rc7 {[%emt 0:03:02]} 21. Rd7 {[%emt 0:14:17]} Rxd7 {[%emt 0:08:44]} 22. Qxb8 {[%emt 0:00:20]} Rxd1+ {[%emt 0:00:11]} 23. Nxd1 {[%emt 0:00:02]} Qd7 {[%emt 0:00:32]} 24. Nc3 {[%emt 0:00:11]} b5 {[%emt 0:01:46]} 25. Bb7 {[%emt 0:03:27]} a5 {[%emt 0:05:24]} 26. Ba6 {[%emt 0:01:08]} Qd2 {[%emt 0:03:46]} 27. Bxb5 {[%emt 0:01:36]} Qxb2 {[%emt 0:00:45]} 28. Qc8 {[%emt 0:00:01]} Kf8 {[%emt 0:06:19]} 29. Qc5+ {[%emt 0:00:27]} Kg8 {[%emt 0:00:01]} 30. Bxe8 {[%emt 0:00:30]} Nxe8 {[%emt 0:00:13]} 31. Qxa5 {[%emt 0:00:05]} h5 {[%emt 0:00:23]} 32. Qb4 {[%emt 0:01:39]} Qd2 {[%emt 0:00:16]} 33. a4 {[%emt 0:03:11]} Nf6 {[%emt 0:00:02]} 34. a5 {[%emt 0:00:16]} Ng4 {[%emt 0:01:04]} 35. Kg2 {[%emt 0:00:10]} Qe1 {[%emt 0:01:01]} 36. Qb8+ {[%emt 0:00:12]} Kh7 {[%emt 0:00:48]} 37. Qb1+ {[%emt 0:00:06]} Qxb1 {[%emt 0:00:01]} 38. Nxb1 {[%emt 0:00:05]} Ne5 {[%emt 0:00:03]} 39. a6 {[%emt 0:00:06]} Nc6 {[%emt 0:00:02]} 40. Nc3 {[%emt 0:00:06]} Na7 {[%emt 0:00:14]} 41. Kf3 {[%emt 0:00:05]} Kg6 {[%emt 0:00:25]} 42. Ke4 {[%emt 0:00:04]} 1-0

[Event "26th Abu Dhabi Master 2019"]
[Site "Abu Dhabi"]
[Date "2019.08.08"]
[Round "7.15"]
[White "Shyaamnikhil P"]
[Black "Bai, Jinshi"]
[Result "1/2-1/2"]
[ECO "B44"]
[WhiteElo "2456"]
[BlackElo "2606"]
[Annotator "ChessBase"]
[PlyCount "50"]
[EventDate "2019.08.02"]
[EventType "swiss"]
[EventCountry "UAE"]
[SourceTitle "playchess.com"]
[Source "ChessBase"]
[SourceQuality "1"]
[TimeControl "5400+30"]

1. e4 {[%emt 0:00:24]} c5 {[%emt 0:02:18]} 2. Nf3 {[%emt 0:00:43]} e6 {[%emt 0:00:12]} 3. d4 {[%emt 0:01:49]} cxd4 {[%emt 0:00:17]} 4. Nxd4 {[%emt 0:00:07]} Nc6 {[%emt 0:00:24]} 5. Nb5 {[%emt 0:00:49]} d6 {[%emt 0:01:18]} 6. c4 {[%emt 0:00:22]} Nf6 {[%emt 0:00:17]} 7. N1c3 {[%emt 0:00:33]} a6 {[%emt 0:01:29]} 8. Na3 {[%emt 0:00:32]} Qa5 {[%emt 0:01:54]} 9. Bd2 {[%emt 0:08:12]} Be7 {[%emt 0:01:30]} 10. Be2 {[%emt 0:03:23]} O-O {[%emt 0:01:19]} 11. O-O {[%emt 0:04:28]} Qe5 {[%emt 0:02:17]} 12. Bf3 {[%emt 0:18:03]} Nd4 {[%emt 0:14:35]} 13. Nc2 {[%emt 0:00:29]} Nxf3+ {[%emt 0:05:01]} 14. Qxf3 {[%emt 0:00:08]} Bd7 {[%emt 0:02:57]} 15. b4 {[%emt 0:05:41]} Rfc8 {[%emt 0:09:20]} 16. Qd3 {[%emt 0:02:49]} b5 {[%emt 0:09:25]} 17. Ne3 {[%emt 0:01:35]} Rc7 {[%emt 0:09:50]} 18. a4 {[%emt 0:03:59]} bxa4 {[%emt 0:04:10]} 19. f4 {[%emt 0:01:29]} Qh5 {[%emt 0:00:05]} 20. Rf3 {[%emt 0:00:40]} d5 {[%emt 0:08:05]} 21. Rh3 {[%emt 0:12:08]} dxe4 {[%emt 0:05:36]} 22. Qf1 {[%emt 0:00:17]} Qg6 {[%emt 0:00:04]} 23. Rg3 {[%emt 0:00:05]} Qh5 {[%emt 0:00:36]} 24. Rh3 {[%emt 0:00:07]} Qg6 {[%emt 0:00:04]} 25. Rg3 {[%emt 0:00:04]} Qh5 1/2-1/2

[Event "26th Abu Dhabi Master 2019"]
[Site "Abu Dhabi"]
[Date "2019.08.08"]
[Round "7.16"]
[White "Aronyak Ghosh"]
[Black "Petrov, Nikita"]
[Result "1/2-1/2"]
[ECO "A27"]
[WhiteElo "2349"]
[BlackElo "2600"]
[Annotator "ChessBase"]
[PlyCount "63"]
[EventDate "2019.08.02"]
[EventType "swiss"]
[EventCountry "UAE"]
[SourceTitle "playchess.com"]
[Source "ChessBase"]
[SourceQuality "1"]
[TimeControl "5400+30"]

1. c4 e5 2. Nc3 Nc6 3. Nf3 f5 4. d4 e4 5. d5 exf3 6. dxc6 fxg2 7. cxd7+ Qxd7 8. Qxd7+ Bxd7 9. Bxg2 O-O-O 10. Be3 Bb4 11. Rc1 Ne7 12. a3 Bxc3+ 13. Rxc3 Bc6 14. Bg5 Bxg2 15. Rg1 Rd7 16. Bxe7 Rxe7 17. Rxg2 Rhe8 18. Rc2 Kd7 19. Rg3 g6 20. Rd3+ Kc8 21. Kf1 Re4 22. f3 Re3 23. Rcd2 Rxd3 24. Rxd3 c5 25. h4 Kc7 26. Kf2 Re6 27. Re3 Kd6 28. Rxe6+ Kxe6 29. f4 a5 30. a4 b6 31. e3 h5 32. b3 {Ke5} 1/2-1/2

[Event "26th Abu Dhabi Master 2019"]
[Site "Abu Dhabi"]
[Date "2019.08.08"]
[Round "7.17"]
[White "Abdusattorov, Nodirbek"]
[Black "Krishna C R G"]
[Result "1-0"]
[ECO "D15"]
[WhiteElo "2598"]
[BlackElo "2463"]
[Annotator "ChessBase"]
[PlyCount "142"]
[EventDate "2019.08.02"]
[EventType "swiss"]
[EventCountry "UAE"]
[SourceTitle "playchess.com"]
[Source "ChessBase"]
[SourceQuality "1"]
[TimeControl "5400+30"]

1. d4 {[%emt 0:00:00]} d5 {[%emt 0:00:13]} 2. c4 {[%emt 0:00:00]} c6 {[%emt 0:00:04]} 3. Nf3 {[%emt 0:00:01]} Nf6 {[%emt 0:00:05]} 4. Nc3 {[%emt 0:00:06]} a6 {[%emt 0:00:05]} 5. a4 {[%emt 0:00:09]} e6 {[%emt 0:00:41]} 6. e3 {[%emt 0:00:44]} c5 {[%emt 0:01:19]} 7. cxd5 {[%emt 0:01:34]} exd5 {[%emt 0:00:07]} 8. Be2 {[%emt 0:00:40]} Nc6 {[%emt 0:00:45]} 9. O-O {[%emt 0:01:48]} Bd6 {[%emt 0:16:27]} 10. dxc5 {[%emt 0:12:13]} Bxc5 {[%emt 0:00:02]} 11. Qb3 {[%emt 0:01:25]} Bf5 {[%emt 0:28:33]} 12. Bd2 {[%emt 0:08:31]} O-O {[%emt 0:03:13]} 13. Rac1 {[%emt 0:02:11]} Qb6 {[%emt 0:03:26]} 14. Qxb6 {[%emt 0:01:53]} Bxb6 {[%emt 0:00:02]} 15. Rfd1 {[%emt 0:00:51]} Rfd8 {[%emt 0:01:01]} 16. Be1 {[%emt 0:00:40]} Rac8 {[%emt 0:05:51]} 17. h3 {[%emt 0:01:17]} h6 {[%emt 0:01:25]} 18. Kf1 {[%emt 0:13:05]} Kf8 {[%emt 0:02:10]} 19. Nd4 {[%emt 0:01:42]} Nxd4 {[%emt 0:07:29]} 20. exd4 {[%emt 0:00:06]} Ne4 {[%emt 0:14:45]} 21. Na2 {[%emt 0:01:30]} Rxc1 {[%emt 0:01:35]} 22. Nxc1 {[%emt 0:00:05]} Rc8 {[%emt 0:00:23]} 23. f3 {[%emt 0:00:19]} Nf6 {[%emt 0:03:38]} 24. Nb3 {[%emt 0:02:52]} Bc2 {[%emt 0:04:42]} 25. Rc1 {[%emt 0:00:13]} Rc6 {[%emt 0:00:17]} 26. a5 {[%emt 0:01:24]} Bc7 {[%emt 0:03:26]} 27. Nc5 {[%emt 0:00:30]} Bf5 {[%emt 0:00:04]} 28. b4 {[%emt 0:06:20]} Bf4 {[%emt 0:00:57]} 29. Rc3 {[%emt 0:00:29]} Rc7 {[%emt 0:00:08]} 30. b5 {[%emt 0:01:08]} axb5 {[%emt 0:00:02]} 31. Bxb5 {[%emt 0:00:04]} Kg8 {[%emt 0:02:00]} 32. Rb3 {[%emt 0:00:55]} Bc8 {[%emt 0:00:10]} 33. Ke2 {[%emt 0:02:34]} Bd6 {[%emt 0:00:53]} 34. Bb4 {[%emt 0:00:03]} Re7+ {[%emt 0:00:27]} 35. Kd1 {[%emt 0:00:56]} Nh5 {[%emt 0:00:33]} 36. Rc3 {[%emt 0:00:36]} Rc7 {[%emt 0:00:30]} 37. Rc2 {[%emt 0:05:30]} Nf4 {[%emt 0:00:27]} 38. Rb2 {[%emt 0:01:39]} Bf8 {[%emt 0:00:33]} 39. Bf1 {[%emt 0:03:31]} Ne6 {[%emt 0:00:29]} 40. Nxe6 {[%emt 0:00:14]} Bxe6 {[%emt 0:00:02]} 41. Bd3 {[%emt 0:02:24]} Bxb4 {[%emt 0:00:45]} 42. Rxb4 {[%emt 0:00:01]} Kf8 {[%emt 0:00:27]} 43. f4 {[%emt 0:00:29]} Ke7 {[%emt 0:00:06]} 44. Rb6 {[%emt 0:00:13]} Bd7 {[%emt 0:00:27]} 45. Kd2 {[%emt 0:00:59]} Bc6 {[%emt 0:01:03]} 46. h4 {[%emt 0:00:23]} Kd8 {[%emt 0:00:42]} 47. f5 {[%emt 0:02:18]} Re7 {[%emt 0:00:30]} 48. a6 {[%emt 0:01:47]} Kc7 {[%emt 0:00:21]} 49. axb7 {[%emt 0:00:52]} Re8 {[%emt 0:00:24]} 50. Rb1 {[%emt 0:00:54]} Bxb7 {[%emt 0:00:38]} 51. f6 {[%emt 0:02:22]} gxf6 {[%emt 0:00:02]} 52. Rf1 {[%emt 0:00:04]} Re6 {[%emt 0:00:59]} 53. Rf5 {[%emt 0:00:17]} Kd6 {[%emt 0:00:32]} 54. Rh5 {[%emt 0:00:29]} f5 {[%emt 0:00:23]} 55. Bxf5 {[%emt 0:00:10]} Rf6 {[%emt 0:00:04]} 56. Ke3 {[%emt 0:00:16]} Ke7 {[%emt 0:00:21]} 57. Bg4 {[%emt 0:02:09]} Bc6 {[%emt 0:01:05]} 58. Re5+ {[%emt 0:00:19]} Kd6 {[%emt 0:00:09]} 59. Bf5 {[%emt 0:00:19]} Kc7 {[%emt 0:00:47]} 60. g4 {[%emt 0:00:18]} Kd8 {[%emt 0:00:13]} 61. Kf4 {[%emt 0:00:30]} Rd6 {[%emt 0:00:11]} 62. Re3 {[%emt 0:00:24]} Bd7 {[%emt 0:01:03]} 63. Ke5 {[%emt 0:01:43]} Ke7 {[%emt 0:00:44]} 64. Bxd7 {[%emt 0:02:33]} Kxd7 {[%emt 0:00:34]} 65. Rf3 {[%emt 0:00:34]} Re6+ {[%emt 0:00:13]} 66. Kxd5 {[%emt 0:00:05]} Rd6+ {[%emt 0:00:04]} 67. Kc5 {[%emt 0:00:50]} Rc6+ {[%emt 0:00:05]} 68. Kb5 {[%emt 0:00:20]} Rg6 {[%emt 0:00:31]} 69. Rxf7+ {[%emt 0:00:29]} Ke6 {[%emt 0:00:09]} 70. Rf4 {[%emt 0:00:39]} Kd5 {[%emt 0:00:02]} 71. g5 {[%emt 0:00:38]} Re6 {[%emt 0:02:26]} 1-0

[Event "26th Abu Dhabi Master 2019"]
[Site "Abu Dhabi"]
[Date "2019.08.08"]
[Round "7.18"]
[White "Petrosyan, Manuel"]
[Black "Rathanvel, V S"]
[Result "1-0"]
[ECO "A48"]
[WhiteElo "2592"]
[BlackElo "2367"]
[Annotator "ChessBase"]
[PlyCount "91"]
[EventDate "2019.08.02"]
[EventType "swiss"]
[EventCountry "UAE"]
[SourceTitle "playchess.com"]
[Source "ChessBase"]
[SourceQuality "1"]
[TimeControl "5400+30"]

1. d4 {[%emt 0:00:00]} Nf6 {[%emt 0:00:00]} 2. Nf3 {[%emt 0:00:00]} g6 {[%emt 0:00:00]} 3. e3 {[%emt 0:00:00]} Bg7 {[%emt 0:00:18]} 4. Be2 {[%emt 0:00:00]} O-O {[%emt 0:01:06]} 5. O-O {[%emt 0:00:01]} b6 {[%emt 0:02:26]} 6. c4 {[%emt 0:01:31]} Bb7 {[%emt 0:00:17]} 7. Nc3 {[%emt 0:00:14]} d5 {[%emt 0:00:56]} 8. cxd5 {[%emt 0:00:31]} Nxd5 {[%emt 0:00:23]} 9. Bd2 {[%emt 0:00:05]} Nd7 {[%emt 0:19:21]} 10. Qb3 {[%emt 0:05:49]} e6 {[%emt 0:01:05]} 11. Na4 {[%emt 0:09:52]} Qe7 {[%emt 0:08:46]} 12. Rac1 {[%emt 0:04:58]} Rfc8 {[%emt 0:19:23]} 13. Nc5 {[%emt 0:05:05]} bxc5 {[%emt 0:03:31]} 14. Qxb7 {[%emt 0:01:27]} cxd4 {[%emt 0:00:54]} 15. exd4 {[%emt 0:05:13]} Rab8 {[%emt 0:04:48]} 16. Qa6 {[%emt 0:03:48]} Qd8 {[%emt 0:09:17]} 17. b3 {[%emt 0:03:58]} c5 {[%emt 0:00:57]} 18. Bc4 {[%emt 0:28:45]} cxd4 {[%emt 0:13:41]} 19. Bxd5 {[%emt 0:00:19]} exd5 {[%emt 0:00:06]} 20. Bg5 {[%emt 0:03:17]} Nf6 {[%emt 0:08:52]} 21. Nxd4 {[%emt 0:02:10]} Rxc1 {[%emt 0:01:28]} 22. Rxc1 {[%emt 0:00:09]} h6 {[%emt 0:02:23]} 23. Bf4 {[%emt 0:03:13]} Qb6 {[%emt 0:00:20]} 24. Qxb6 {[%emt 0:02:51]} Rxb6 {[%emt 0:00:02]} 25. f3 {[%emt 0:01:06]} Rb7 {[%emt 0:00:47]} 26. Be3 {[%emt 0:00:45]} Kh7 {[%emt 0:01:19]} 27. Rc5 {[%emt 0:01:00]} Bf8 {[%emt 0:00:16]} 28. Ra5 {[%emt 0:01:35]} Bb4 {[%emt 0:00:35]} 29. Ra6 {[%emt 0:00:15]} Kg7 {[%emt 0:00:39]} 30. Nc6 {[%emt 0:00:39]} Bc3 {[%emt 0:00:02]} 31. Rxa7 {[%emt 0:00:28]} Rxa7 {[%emt 0:00:56]} 32. Bxa7 {[%emt 0:00:08]} Kf8 {[%emt 0:00:07]} 33. Kf2 {[%emt 0:01:52]} Ke8 {[%emt 0:00:01]} 34. Bd4 {[%emt 0:00:12]} Bxd4+ {[%emt 0:00:13]} 35. Nxd4 {[%emt 0:00:06]} Kd7 {[%emt 0:00:05]} 36. Ke3 {[%emt 0:00:17]} Kd6 {[%emt 0:00:07]} 37. b4 {[%emt 0:00:18]} Nd7 {[%emt 0:00:08]} 38. a4 {[%emt 0:00:27]} Ne5 {[%emt 0:00:45]} 39. a5 {[%emt 0:00:13]} Nd7 {[%emt 0:00:43]} 40. f4 {[%emt 0:00:54]} Nb8 {[%emt 0:00:39]} 41. Nb5+ {[%emt 0:00:44]} Kc6 {[%emt 0:00:08]} 42. Nc3 {[%emt 0:02:20]} Kd6 {[%emt 0:00:11]} 43. b5 {[%emt 0:01:16]} Kc5 {[%emt 0:00:06]} 44. a6 {[%emt 0:00:31]} Nd7 {[%emt 0:00:12]} 45. Na4+ {[%emt 0:00:28]} Kxb5 {[%emt 0:00:06]} 46. a7 {[%emt 0:00:05]} 1-0

[Event "26th Abu Dhabi Master 2019"]
[Site "Abu Dhabi"]
[Date "2019.08.08"]
[Round "7.19"]
[White "Mahalakshmi, M."]
[Black "Sanal, Vahap"]
[Result "0-1"]
[ECO "E46"]
[WhiteElo "2173"]
[BlackElo "2520"]
[Annotator "ChessBase"]
[PlyCount "76"]
[EventDate "2019.08.02"]
[EventType "swiss"]
[EventCountry "UAE"]
[SourceTitle "playchess.com"]
[Source "ChessBase"]
[SourceQuality "1"]
[TimeControl "5400+30"]

1. d4 Nf6 2. c4 e6 3. Nc3 Bb4 4. e3 O-O 5. Bd2 b6 6. Nf3 Bb7 7. Bd3 d5 8. cxd5 exd5 9. Rc1 Be7 10. O-O c5 11. Ne5 Nbd7 12. f4 a6 13. Kh1 b5 14. Nxd7 Nxd7 15. dxc5 Nxc5 16. Bb1 Re8 17. Ne2 Ne4 18. Nd4 Bf6 19. Bc3 Nxc3 20. Rxc3 b4 21. Rd3 a5 22. Re1 g6 23. Bc2 Qb6 24. Ba4 Re7 25. g3 Rc8 26. Rd2 Rc4 {[%emt 0:54:30]} 27. Bb3 {[%emt 1:15:00]} Rxe3 {[%emt 0:06:11]} 28. Rxe3 {[%emt 0:01:46]} Bxd4 {[%emt 0:00:07]} 29. Rf3 {[%emt 0:09:53]} Be3 {[%emt 0:01:34]} 30. Bxc4 {[%emt 0:04:34]} dxc4 {[%emt 0:00:27]} 31. Rd8+ {[%emt 0:00:57]} Kg7 {[%emt 0:00:03]} 32. Kg2 {[%emt 0:01:10]} c3 {[%emt 0:00:36]} 33. Rd3 {[%emt 0:01:58]} cxb2 {[%emt 0:01:43]} 34. Qc2 {[%emt 0:03:20]} Bd4 {[%emt 0:01:21]} 35. Rd1 {[%emt 0:02:08]} Qc6 {[%emt 0:01:20]} 36. Qd3 {[%emt 0:01:19]} Qe4 {[%emt 0:00:37]} 37. Qf1 {[%emt 0:01:10]} Qc2+ {[%emt 0:00:13]} 38. Kh3 {[%emt 0:00:50]} Bxf3 {[%emt 0:00:18]} 0-1

[Event "26th Abu Dhabi Master 2019"]
[Site "Abu Dhabi"]
[Date "2019.08.08"]
[Round "7.20"]
[White "Salem, A.R. Saleh"]
[Black "Vasquez Schroeder, Rodrigo"]
[Result "1-0"]
[ECO "A61"]
[WhiteElo "2672"]
[BlackElo "2496"]
[Annotator "ChessBase"]
[PlyCount "75"]
[EventDate "2019.08.02"]
[EventType "swiss"]
[EventCountry "UAE"]
[SourceTitle "playchess.com"]
[Source "ChessBase"]
[SourceQuality "1"]
[TimeControl "5400+30"]

1. d4 {[%emt 0:00:00]} Nf6 {[%emt 0:00:53]} 2. c4 {[%emt 0:00:00]} e6 {[%emt 0:00:19]} 3. Nf3 {[%emt 0:00:00]} c5 {[%emt 0:00:10]} 4. d5 {[%emt 0:00:00]} d6 {[%emt 0:00:05]} 5. Nc3 {[%emt 0:00:00]} exd5 {[%emt 0:00:05]} 6. cxd5 {[%emt 0:00:03]} g6 {[%emt 0:00:05]} 7. Nd2 {[%emt 0:00:03]} Nbd7 {[%emt 0:00:37]} 8. e4 {[%emt 0:00:06]} Bg7 {[%emt 0:00:07]} 9. Be2 {[%emt 0:00:03]} O-O {[%emt 0:00:07]} 10. O-O {[%emt 0:00:03]} Re8 {[%emt 0:00:10]} 11. a4 {[%emt 0:00:07]} a6 {[%emt 0:02:00]} 12. Qc2 {[%emt 0:00:41]} Ne5 {[%emt 0:00:42]} 13. Ra3 {[%emt 0:00:58]} Bg4 {[%emt 0:02:34]} 14. f4 {[%emt 0:20:26]} Ned7 {[%emt 0:00:27]} 15. Bd3 {[%emt 0:00:31]} Nh5 {[%emt 0:08:24]} 16. Nc4 {[%emt 0:01:19]} Nb6 {[%emt 0:01:30]} 17. Ne3 {[%emt 0:04:44]} Bd4 {[%emt 0:13:03]} 18. a5 {[%emt 0:00:40]} Nc8 {[%emt 0:09:54]} 19. h3 {[%emt 0:02:51]} Bd7 {[%emt 0:02:06]} 20. Ne2 {[%emt 0:01:46]} Bg7 {[%emt 0:01:43]} 21. g4 {[%emt 0:03:31]} Nf6 {[%emt 0:00:43]} 22. Ng3 {[%emt 0:01:27]} Bb5 {[%emt 0:01:24]} 23. g5 {[%emt 0:00:39]} Nd7 {[%emt 0:00:15]} 24. Ng4 {[%emt 0:01:48]} Bxd3 {[%emt 0:04:24]} 25. Rxd3 {[%emt 0:00:12]} Qxa5 {[%emt 0:03:39]} 26. Bd2 {[%emt 0:00:27]} Qb6 {[%emt 0:00:34]} 27. Rb3 {[%emt 0:00:11]} Qa7 {[%emt 0:01:12]} 28. Rbf3 {[%emt 0:00:06]} b5 {[%emt 0:11:44]} 29. Bc3 {[%emt 0:00:26]} b4 {[%emt 0:00:43]} 30. Bxg7 {[%emt 0:00:11]} c4+ {[%emt 0:00:36]} 31. Kg2 {[%emt 0:00:35]} Kxg7 {[%emt 0:00:07]} 32. Qxc4 {[%emt 0:09:12]} Qc5 {[%emt 0:00:24]} 33. Qd3 {[%emt 0:00:15]} Ncb6 {[%emt 0:00:28]} 34. b3 {[%emt 0:01:58]} Rec8 {[%emt 0:04:08]} 35. R1f2 {[%emt 0:00:09]} Ra7 {[%emt 0:03:48]} 36. Qd2 {[%emt 0:00:51]} h5 {[%emt 0:02:51]} 37. gxh6+ {[%emt 0:01:38]} Kh7 {[%emt 0:00:07]} 38. f5 {[%emt 0:01:09]} 1-0